Cogmind - Beta 13 @@@ ROGUE MODE // 2024.04.07 @ 14:27:59 Player: LEWiKK Result: Destroyed by HX-7P4(R) with Subdweller Laser Performance ------------- Evolutions (0) 0 Regions Visited (2) 400 Robots Destroyed (7) 35 Value Destroyed (152) 152 Prototype IDs (0) 0 Alien Tech Used (0) 0 Bonus (0) 0 TOTAL SCORE: 587 Bonus ------- None Cogmind --------- Core Integrity 0/250 Matter 280/300 Energy 250/250 System Corruption 0% Temperature Cool (6) Movement Treading (160) Location -10/Subcaves Parts ------- > --- POWER (1) -------- Ion Engine > --- PROPULSION (2) --- Spiked Treads Spiked Treads > --- UTILITY (2) ------ Structural Scanner Subdweller Optics > --- WEAPON (2) ------- Mining Claw Mining Claw > --- INVENTORY (5) ---- Ion Engine Datajack Mining Claw Mining Claw Peak State ------------ > --- POWER ------------ Ion Engine > --- PROPULSION ------- Spiked Treads Spiked Treads > --- UTILITY ---------- Scrap Shield > --- WEAPON ----------- Mining Claw Mining Claw > --- INVENTORY -------- Subdweller Monowheel Mining Claw Mining Claw [Rating: 11] Favorites ----------- Power Light Ion Engine Engine Light Ion Engine Propulsion Aluminum Leg Treads Spiked Treads Leg Aluminum Leg Utility Structural Scanner Device Structural Scanner Storage Medium Storage Unit Protection Scrap Shield Weapon Mining Claw Ballistic Gun Assault Rifle Slashing Weapon Mining Claw Build | -11 -10 -10 ------- Run | Yrd Mat Sub Slots Evolved . | . . . Power . | . . . Propulsion . | . . . Utility . | . . . Weapon . | . . . Parts Attached 21 | 6 5 10 Power 5 | 1 1 3 Engine 5 | 1 1 3 Core . | . . . Reactor . | . . . Propulsion 5 | 2 . 3 Treads 2 | . . 2 Leg 3 | 2 . 1 Wheel . | . . . Hover . | . . . Flight . | . . . Utility 6 | 1 2 3 Device 3 | . 1 2 Storage 2 | 1 1 . Processor . | . . . Hackware . | . . . Protection 1 | . . 1 Artifact . | . . . Weapon 5 | 2 2 1 Energy Gun . | . . . Energy Cannon . | . . . Ballistic Gun 2 | 2 . . Ballistic Cannon . | . . . Launcher . | . . . Special Weapon . | . . . Impact Weapon . | . . . Slashing Weapon 3 | . 2 1 Piercing Weapon . | . . . Special Melee Weapon . | . . . Unidentified Prototypes . | . . . Parts Lost 6 | . . 6 Power 1 | . . 1 Propulsion 3 | . . 3 Utility 1 | . . 1 Weapon 1 | . . 1 Highest Loss Streak 4 | . . 4 To Critical Strikes . | . . . Average Slot Usage (%) 93 | . 93 94 Engine 12 | . 14 11 Treads 8 | . . 10 Leg 19 | . 28 16 Device 12 | . 7 13 Storage 11 | . 14 10 Protection 1 | . . 1 Slashing Weapon 27 | . 27 28 Naked Turns . | . . . Heaviest Build 27 | 13 18 27 Greatest Support 40 | 20 20 40 Greatest Overweight (x) 1 | . . 1 Average Overweight (x) . | . . . Largest Inventory Capacity 10 | 8 10 10 Average Capacity 8 | 7 8 8 Most Carried 10 | 5 10 10 Average Carried 7 | 1 8 8 Final Capacity 10 | 8 10 5 Final Carried 10 | 1 10 4 Class Distribution -------------------- 100% | Mutant Dominant Class ---------------- Mutant | -10/Materials Mutant | -10/Subcaves Resources | -11 -10 -10 ----------- Run | Yrd Mat Sub Matter Collected 385 | 234 69 82 Remotely . | . . . Salvage Created 392 | . 97 295 Parts 27 | . 11 16 Haulers Intercepted 1 | . 1 . Recyclers Shooed . | . . . Parts Field Recycled . | . . . Retrieved Matter . | . . . Parts Self-Destructed 7 | . . 7 Prevented . | . . . Kills | -11 -10 -10 ------- Run | Yrd Mat Sub Combat Hostiles Destroyed 6 | . 3 3 Melee 6 | . 3 3 Classes Destroyed 3 | . 2 1 Hauler 1 | . 1 . Swarmer 3 | . 3 . Subdweller 3 | . . 3 Best Kill Streak 2 | . 2 1 Combat Bots Only 2 | . 2 1 Max Kills in Single Turn 1 | . 1 1 Gunslinging . | . . . Exploded . | . . . Melee 1 | . 1 1 Uniques/NPCs Destroyed . | . . . Combat | -11 -10 -10 -------- Run | Yrd Mat Sub Hostile Shots Fired 67 | . 33 34 Missed 11 | . 7 4 Damage Taken 1126 | . 222 904 Core 265 | . 57 208 Absorbed by Shields . | . . . Core Remaining (%) 100 | 100 . . Volleys Fired . | . . . Largest . | . . . Hottest . | . . . Shots Fired . | . . . Gun . | . . . Cannon . | . . . Launcher . | . . . Special . | . . . Kinetic . | . . . Thermal . | . . . Explosive . | . . . Electromagnetic . | . . . Robot Hit Streak . | . . . Robot Miss Streak . | . . . Penetration Max . | . . . Secondary Targets . | . . . Shots Hit Robots 44 | . 10 34 Core Hits 12 | . 4 8 Critical Kills . | . . . Critical Parts Destroyed . | . . . Critical Strikes . | . . . Melee Attacks 121 | . 32 89 Impact . | . . . Slashing 121 | . 32 89 Piercing . | . . . Sneak Attacks 1 | . 1 . Combat Hostiles . | . . . Follow-up Attacks 8 | . 5 3 Damage Inflicted 1407 | . 254 1153 Guns . | . . . Cannons . | . . . Explosions . | . . . Melee 1407 | . 254 1153 Ramming . | . . . Kinetic . | . . . Thermal . | . . . Explosive . | . . . Electromagnetic . | . . . Impact . | . . . Slashing 1407 | . 254 1153 Piercing . | . . . Highest Corruption . | . . . Average Corruption . | . . . Corruption Purged . | . . . Corruption Blocked . | . . . Overload Shots . | . . . Overflow Damage 17 | . 8 9 Projectiles . | . . . Explosions . | . . . Melee 17 | . 8 9 Knockbacks . | . . . Impact . | . . . Kinetic . | . . . Secondary . | . . . Self-Inflicted Damage . | . . . Shots . | . . . Rammed . | . . . Targets Rammed . | . . . Kicked . | . . . Crushed . | . . . Highest Temperature . | . . . Average Temperature . | . . . Received Heat Transfer 120 | . . 120 Siege Activations . | . . . Robots Corrupted . | . . . Combat Hostiles . | . . . Parts Fried . | . . . Impact Corruptions . | . . . Robots Melted . | . . . Combat Hostiles . | . . . Parts Melted . | . . . Heat Transferred . | . . . Parts Sabotaged . | . . . Parts Stolen . | . . . Parts Stripped . | . . . Power Chain Reactions . | . . . Alert | -11 -10 -10 ------- Run | Yrd Mat Sub Peak Influence 96 | . 96 . Initial . | . . . Average 60 | . 67 . Maximum Alert Level . | . . . Low Security (%) 100 | 100 100 . Level 1 . | . . . Level 2 . | . . . Level 3 . | . . . Level 4 . | . . . Level 5 . | . . . High Security . | . . . Max Security . | . . . Squads Dispatched 2 | . 2 . Investigation . | . . . Extermination . | . . . Reinforcement 2 | . 2 . Assault . | . . . Garrison . | . . . Intercept . | . . . Searches Triggered . | . . . Construction Impeded . | . . . Haulers Reinforced . | . . . Active Scanning Responses . | . . . Cargo Convoy Interrupts . | . . . Stealth | -11 -10 -10 --------- Run | Yrd Mat Sub Distress Signals . | . . . Communications Jammed . | . . . Distress Signals . | . . . Times Spotted 14 | . 7 7 Peak Tracking Total 3 | . 3 2 Tactical Retreats . | . . . Traps | -11 -10 -10 ------- Run | Yrd Mat Sub Traps Triggered 2 | . 1 1 Indirectly . | . . . Trap Hack Attempts . | . . . Triggered . | . . . Disarmed . | . . . Reprogrammed . | . . . Reused . | . . . Traps Extracted . | . . . Installed . | . . . Triggered . | . . . Machines | -11 -10 -10 ---------- Run | Yrd Mat Sub Machines Disabled 1 | . 1 . Max in Single Turn 1 | . 1 . Machines Repaired . | . . . Machines Dismantled . | . . . Machines Sabotaged . | . . . Overloaded Fab Kills . | . . . Hacking | -11 -10 -10 --------- Run | Yrd Mat Sub Machines Accessed 2 | . 2 . Terminals 1 | . 1 . Fabricators . | . . . Repair Stations . | . . . Recycling Units 1 | . 1 . Scanalyzers . | . . . Garrison Access . | . . . Total Hacks 2 | . 2 . Successful 1 | . 1 . Failed 1 | . 1 . Catastrophic 1 | . 1 . Database Lockouts . | . . . Manual 1 | . 1 . Terminals 1 | . 1 . Fabricators . | . . . Repair Stations . | . . . Recycling Units 1 | . 1 . Scanalyzers . | . . . Garrison Access . | . . . Terminal Hacks . | . . . Fabricator Hacks . | . . . Repair Station Hacks . | . . . Recycling Unit Hacks 1 | . 1 . Report Inventory 1 | . 1 . Scanalyzer . | . . . Garrison Access Hacks . | . . . Unauthorized Hacks . | . . . Terminals . | . . . Fabricators . | . . . Repair Stations . | . . . Recycling Units . | . . . Scanalyzers . | . . . Garrison Access . | . . . Data Cores Recovered . | . . . Used . | . . . Hacking Detections 1 | . 1 . Full Trace Events . | . . . Feedback Events . | . . . Feedback Blocked . | . . . Robot Schematics Acquired . | . . . Robots Built . | . . . Authchips . | . . . Time . | . . . Total Robot Build Rating . | . . . Part Schematics Acquired . | . . . Parts Built . | . . . Authchips . | . . . Time . | . . . Total Part Build Rating . | . . . Parts Repaired . | . . . Time . | . . . Parts Recycled . | . . . Recycled Matter . | . . . Retrieved Matter . | . . . Retrieved Components . | . . . Parts Scanalyzed . | . . . Part Schematics Acquired . | . . . Parts Damaged . | . . . Bothacking | -11 -10 -10 ------------ Run | Yrd Mat Sub Used RIF Installer . | . . . Robots Hacked . | . . . Non-combat . | . . . Combat . | . . . Robot Hacks Applied . | . . . Relay Couplers Released . | . . . Fabnet Peak Effective % . | . . . Robots Rewired . | . . . Allies Hacked . | . . . Hacks Repelled . | . . . Allies | -11 -10 -10 -------- Run | Yrd Mat Sub Total Allies . | . . . Largest Group . | . . . Highest-Rated Group . | . . . Highest-Rated Ally . | . . . Total Orders . | . . . Ally Attacks . | . . . Total Damage . | . . . Kills . | . . . Allies Corrupted . | . . . Allies Melted . | . . . Intel | -11 -10 -10 ------- Run | Yrd Mat Sub Robot Analysis Total . | . . . Derelict Logs Recovered 1 | . . 1 Drone Launches . | . . . Drone Recoveries . | . . . Exploration | -11 -10 -10 ------------- Run | Yrd Mat Sub Turns Passed 1734 | 50 393 1291 Spaces Moved 1009 | 37 230 742 Core 11 | 11 . . Treads 231 | . . 231 Legs 767 | 26 230 511 Wheels . | . . . Hover . | . . . Flight . | . . . Fastest Speed 50 | 50 120 120 Average Speed 128 | 99 120 133 Slowest Speed 190 | 120 120 190 Overloaded Moves . | . . . Propulsion Burnouts . | . . . Robots Hopped . | . . . Cave-ins Triggered . | . . . Exploration Rate (%) 30 | 3 43 45 Regions Visited 2 Branch Regions 1 Pre-discovered Areas 1 | . . 1 Known Exits Taken . | . . . Unknown Exits Taken 2 | 1 1 . Scrap Searched 4 | . . 4 Spaces Dug 4 | . 4 . Terrain Destroyed 4 | . 4 . Melee 4 | . 4 . Projectile . | . . . AOE . | . . . Terrain Rammed . | . . . Walls Destroyed . | . . . Machines Disabled . | . . . Actions | -11 -10 -10 --------- Run | Yrd Mat Sub Total 1238 | 50 295 893 Wait 45 | 1 12 32 Move 1007 | 36 229 742 Hop . | . . . Pick Up 40 | 7 17 16 Fast Attach . | . . . Attach 15 | 6 1 8 Detach . | . . . Swap 6 | . 4 2 Drop 18 | . 7 11 Fire . | . . . Melee 101 | . 25 76 Ram . | . . . Kick . | . . . Crush . | . . . Escape Stasis . | . . . Rewire . | . . . Trap . | . . . Miscellaneous 6 | . . 6 Route ------- -11/Scrapyard -10/Materials (discovered 3 exits: [*Mat] / [*Min] / [*Sub]) -10/Subcaves (discovered 1 exit: [*Mat]) History --------- Turn | Location | Event 5 | -11/Scrapyard | Discovered new exit (range 16) 51 | -11/Scrapyard | Entered Materials 92 | -10/Materials | Discovered new exit (range 16) 257 | -10/Materials | Discovered new exit (range 10) 314 | -10/Materials | Build established: Mutant 426 | -10/Materials | Discovered new exit (range 15) 444 | -10/Materials | Entered Subcaves 489 | -10/Subcaves | Shifting Twisted Machinery released Sub. Power Source 806 | -10/Subcaves | A swath of the cavern ceiling suddenly collapsed 1007 | -10/Subcaves | Learned location of Zion (-7) 1007 | -10/Subcaves | Met a Zionite searching for "candidates" 1204 | -10/Subcaves | Core integrity fell below 50% 1218 | -10/Subcaves | Core integrity fell below 20% 1246 | -10/Subcaves | Lost 4 parts (1p2n1w) 1260 | -10/Subcaves | Shifting Twisted Machinery released Spk. Treads 1267 | -10/Subcaves | Shifting Twisted Machinery released Barrage Gun 1483 | -10/Subcaves | Learned Materials interactive machine intel 1542 | -10/Subcaves | Ambushed by Subdweller buried in earth 1640 | -10/Subcaves | Discovered new exit (range 21) 1735 | -10/Subcaves | Destroyed by HX-7P4(R) with Subdweller Laser Last Messages --------------- PX-PDJ(R) destroyed. Scrap Shield Fragment affixed to Scrap Shield (+5). EW-893(R): "ARGHSUB!" Scrap Shield destroyed. Destroyed Sub. Optics. EW-893(R) destroyed. Mining Claw follow-up attack on SW-4SB(R). SW-4SB(R) destroyed. Acquired Datajack. Dropped Datajack. Acquired Structural Scanner. Subatomizers dissect the Sub. Monowheel. Acquired Datajack. Dropped Datajack. Acquired Sub. Optics. Dropped Sub. Monowheel. Acquired Datajack. Subatomizers dissect the Sub. Monowheel. EXIT=FOUND Mining Claw follow-up attack on HX-7P4(R). Map ----- +----------------------------------------------------+ | | | | | | | | | | | | | | | | | | | | | | | | | | | ?????????????????????????????????????????????????? | | ?????????????????????????????????????????????????? | | ?????????????????????????????????????????????????? | | ?????????????????????????????????????????????????? | | ?????????????????????????????????????????????????? | | ?????????????????????????????????????????????????? | | ?????????????????????????????????????????????????? | | ?????????????????????????????????????????????????? | | ?????????????????????????####????????????????????? | | ?????????????????????????####????????????????????? | | ??????????????????????? <##????????????????????? | | ?????????????????????? ##R##??????#########?????? | | ????????????????????#####@ ##?????###########????? | | ????????????????????####< ########### ###?#### | | ????????????????????## ## ########## ####### | | ????????????########## <#### # "###### | | ??????################ # | | ?????######### # # "" | | ?????### ### < | | ?????## # ## # | | ?????### ########## "## # | | ?????#################### %] ### ## | | ??????##########??????### #"" *[ #### ## | | ???????????????????????###### ##### ## | | ???????????????????????######### ######### # | | ???????????????????????????################?## # | | ??????????????????????????????#########?????### | | ????????????????????????????????????????????### | | ?????????????????????????????????????????????### | | ?????????????????????????????????????????????### | | ????????????????????????????????????????????### # | | ????????????????????????????????????????????## # | | ????????????????????????????????????????????## | | ????????????????????????????????????????????### | | ????????????????????????????????????????????#### | | ?????????????????????????????????????????????### # | | ??????????????????????????????????????????????# # | +----------------------------------------------------+ Best States ------------- Heat Dissipation 25 Energy Generation 15 Energy Capacity 250 Matter Stores 300 Matter Capacity 300 Sight Range 21 Terrain Scan Density 10 Armor Coverage 800 Evasion (%) 55 Recoil Reduction 2 Item Schematics ----------------- None Robot Schematics ------------------ None Fabricated ------------ Nothing Alien Tech Used ----------------- None Achievements -------------- None Challenges ------------ None Game ------ Seed CatalystLobotomyPod Manual? 0 Play Time 00:22:00 Cumulative 14.9 hours Start 2024.04.07 @ 14:05:50 End 2024.04.07 @ 14:27:59 Sessions 1 Manual Loads 0 Difficulty Rogue Special Mode None Game No. 11 Rogue 11 Adventurer 0 Explorer 0 Win Type - Total 0 Types 0/0/0/0/0/0/0/0/0 Lore% 17 Gallery% 13 Achievement% 14 Wizard Run 0 Options --------- Layout 1 ASCII 0 Keyboard 0 Movement Mouse Keybinds 0 Fullscreen 2 Font 20/SmallcapsGlow Map View 54x42 Zoom Use 0% Tactical HUD 0 Map Filters NONE Filters NONE Steam 1 RUN: da0aac3e-6647-4e2a-9d18-8b7e2646e87c